lending/lending_fUSD_20240911
["ID","MTS","AMOUNT","RATE_DAILY","PERIOD"]
[337755027,1726056638849,-500.0,0.0001369,2]
[337755028,1726056638858,-500.0,0.0001369,2]
[337755029,1726056638868,-500.0,0.0001369,2]
[337755030,1726056638877,-583.31,0.0001369,2]
[337755031,1726056638887,-500.0,0.0001369,2]
[337755032,1726056638896,-500.0,0.0001369,2]
[337755033,1726056638906,-500.0,0.0001369,2]
[337755034,1726056638915,-151.0,0.00013791,2]
[337755035,1726056638924,-420.0,0.00013823,2]
[337755036,1726056638934,-151.0,0.00013878,2]
[337755037,1726056638944,-500.0,0.00013904,2]
[337755038,1726056638954,-255.831594,0.00014389,2]
[337755039,1726056638963,-407.29277667,0.00014417,2]
[337755040,1726056638973,-500.0,0.00014452,2]
[337755041,1726056638983,-7287.76122153,0.000145,2]
[337755042,1726056638992,-296.36854,0.00014521,2]
[337755043,1726056639001,-1284.54372,0.0001454,2]
[337755044,1726056639011,-7287.76122149,0.00014544,2]
[337755045,1726056639020,-7287.76122149,0.00014589,2]
[337755046,1726056639031,-47623.6633,0.000146,2]
[337755047,1726056639039,-241.94951655,0.00014612,2]
[337755048,1726056639049,-328.28053856,0.00014612,2]
[337755049,1726056639058,-7287.76122149,0.00014633,2]
[337755050,1726056639067,-500.0,0.00014637,2]
[337755051,1726056639076,-7287.76122149,0.00014678,2]
[337755052,1726056639086,-500.0,0.00014682,2]
[337755053,1726056639095,-343.12374203,0.00014682,2]
[337755054,1726056639104,-162.01197018,0.00014682,2]
[337755055,1726056639114,-332.16625115,0.00014682,2]
[337755056,1726056639123,-1266.6667488,0.00014683,2]
[337755057,1726056639132,-243.6634623,0.00014683,2]
[337755058,1726056639142,-159.7920875,0.00014683,2]
[337755059,1726056639151,-37727.1327206,0.0001469,3]
[337755060,1726056639161,-1640.853143,0.0001469,2]
[337755061,1726056639171,-2015.0395372,0.0001469,2]
[337755062,1726056639180,-315.6441569,0.0001469,2]
[337755063,1726056639189,-387.6248515,0.0001469,2]
[337755064,1726056639198,-206.9963148,0.0001469,2]
[337755065,1726056639207,-254.2005421,0.0001469,2]
[337755066,1726056639216,-1571.96386336,0.00014694,3]
[337755067,1726056639225,-170715.80966906,0.000147,5]
[337755068,1726056639234,-1079.45367543,0.00014712,3]
[337755069,1726056639430,-492.51018793,0.00014712,3]
[337755070,1726056639441,-52.10743103,0.00014715,5]
[337755071,1726056639452,-99.89256897,0.00014715,5]
[337755072,1726056639461,-648.68264031,0.00014722,2]
[337755073,1726056639472,-868.00078551,0.00014722,2]
[337755074,1726056639487,-763.74997991,0.00014722,2]
[337755075,1726056639498,-1815.69636537,0.00014722,2]
[337755076,1726056639509,-3163.29177813,0.00014722,2]
[337755077,1726056639520,-28.33967226,0.00014722,2]
[337755078,1726056639531,-1571.96386336,0.00014746,3]
[337755079,1726056639540,-175.58646438,0.00014767,2]
[337755080,1726056639551,-582.75405,0.00014767,2]
[337755081,1726056639561,-262.14000012,0.00014767,2]
[337755082,1726056639573,-6267.28070699,0.00014767,2]
[337755083,1726056639583,-777.48,0.000148,2]
[337755084,1726056639591,-223.112661,0.000148,2]
[337755085,1726056639601,-203.0,0.0001481,2]
[337755086,1726056639610,-6460.62857857,0.00014811,2]
[337755087,1726056639621,-827.13264292,0.00014811,2]
[337755088,1726056639631,-203.0,0.0001482,2]
[337755089,1726056639640,-332.01525755,0.00014856,2]
[337755090,1726056640356,-670.37,0.00014856,2]
[337755091,1726056640412,-6285.37596394,0.00014856,2]
[337755092,1726056640421,-2000.0,0.000149,2]
[337755093,1726056640430,-152.85,0.000149,31]
[337755094,1726056640440,-152.85,0.000149,31]
[337755095,1726056640449,-152.85,0.000149,31]
[337755096,1726056640458,-152.85,0.000149,31]
[337755097,1726056640467,-152.85,0.000149,31]
[337755098,1726056640477,-152.85,0.000149,31]
[337755099,1726056640486,-152.85,0.000149,31]
[337755100,1726056640495,-152.85,0.000149,31]
[337755101,1726056640504,-152.85,0.000149,31]
[337755102,1726056640513,-152.85,0.000149,31]
[337755103,1726056640523,-152.85,0.000149,31]
[337755104,1726056640533,-152.85,0.000149,31]
[337755105,1726056640541,-152.85,0.000149,31]
[337755106,1726056640551,-152.85,0.000149,31]
[337755107,1726056640559,-152.85,0.000149,31]
[337755108,1726056640570,-7500.0,0.000149,2]
[337755109,1726056640580,-7287.76122149,0.000149,2]
[337755110,1726056640589,-257.27,0.00014914,2]
[337755111,1726056640598,-2389.2259314,0.0001495,2]
[337755112,1726056640607,-459.605546,0.0001495,2]
[337755113,1726056640617,-301.4047693,0.0001495,2]
[337755114,1726056640626,-58883.0114806,0.0001496,3]
[337755115,1726056640635,-237.87,0.00014962,2]
[337755116,1726056640644,-2944.15057403,0.0001497,3]
[337755117,1726056640653,-2763.4123256,0.0001497,2]
[337755118,1726056640662,-531.5862406,0.0001497,2]
[337755119,1726056640671,-348.6089966,0.0001497,2]
[337755120,1726056640681,-2944.15057403,0.0001497,3]
[337755121,1726056640691,-502.25401363,0.00014973,2]
[337755122,1726056640700,-223.112661,0.00014979,2]
[337755123,1726056640709,-3137.5987199,0.0001498,2]
[337755124,1726056640719,-603.5669352,0.0001498,2]
[337755125,1726056640728,-395.8132239,0.0001498,2]
[337755126,1726056640737,-58883.0114806,0.0001498,3]
[337755127,1726056640747,-203.0,0.0001499,2]
[337755128,1726056640755,-213.0,0.0001499,2]
[337755129,1726056640767,-203.0,0.0001499,2]
[337755130,1726056640776,-212.0,0.0001499,2]
[337755131,1726056640786,-204.0,0.0001499,2]
[337755132,1726056640795,-106887.5605058,0.0001499,2]
[337755133,1726056640804,-1001.1339,0.00014999,2]
[337755134,1726056640815,-2265.0,0.00014999,2]
[337755135,1726056640825,-749.0,0.00015,2]
[337755136,1726056640835,-6493.77015001,0.00015,2]
[337755137,1726056640846,-396727.3396495,0.00015,2]
[337755138,1726056640857,-1954849.31237286,0.00015,2]
[337755139,1726056640866,-173.33,0.00015,2]
[337755140,1726056640876,-1000.0,0.00015,6]
[337755141,1726056640885,-259885.44072666,0.00015,2]
[337755142,1726056640895,-200.0,0.00015,2]
[337755143,1726056640904,-200.0,0.00015,2]
[337755144,1726056640914,-200.0,0.00015,2]
[337755145,1726056640923,-200.0,0.00015,2]
[337755146,1726056640933,-200.0,0.00015,2]
[337755147,1726056640942,-200.0,0.00015,2]
[337755148,1726056640952,-200.0,0.00015,2]
[337755149,1726056640962,-200.0,0.00015,2]
[337755150,1726056640971,-200.0,0.00015,2]
[337755151,1726056640981,-200.0,0.00015,2]
[337755152,1726056640990,-200.0,0.00015,2]
[337755153,1726056640999,-200.0,0.00015,2]
[337755154,1726056641009,-200.0,0.00015,2]
[337755155,1726056641018,-200.0,0.00015,2]
[337755156,1726056641027,-200.0,0.00015,2]
[337755157,1726056641037,-200.0,0.00015,2]
[337755158,1726056641047,-200.0,0.00015,2]
[337755159,1726056641056,-200.0,0.00015,2]
[337755160,1726056641065,-200.0,0.00015,2]
[337755161,1726056641074,-200.0,0.00015,2]
[337755162,1726056641083,-200.0,0.00015,2]
[337755163,1726056641093,-200.0,0.00015,2]
[337755164,1726056641103,-200.0,0.00015,2]
[337755165,1726056641112,-200.0,0.00015,2]
[337755166,1726056641121,-200.0,0.00015,2]
[337755167,1726056641130,-200.0,0.00015,2]
[337755168,1726056641139,-200.0,0.00015,2]
[337755169,1726056641148,-200.0,0.00015,2]
[337755170,1726056641158,-200.0,0.00015,2]
[337755171,1726056641168,-200.0,0.00015,2]
[337755172,1726056641177,-200.0,0.00015,2]
[337755173,1726056641187,-200.0,0.00015,2]
[337755174,1726056641196,-200.0,0.00015,2]
[337755175,1726056641206,-200.0,0.00015,2]
[337755176,1726056641215,-200.0,0.00015,2]
[337755177,1726056641224,-200.0,0.00015,2]
[337755178,1726056641234,-200.0,0.00015,2]
[337755179,1726056641244,-200.0,0.00015,2]
[337755180,1726056641254,-200.0,0.00015,2]
[337755181,1726056641264,-200.0,0.00015,2]
[337755182,1726056641273,-200.0,0.00015,2]
[337755183,1726056641283,-200.0,0.00015,2]
[337755184,1726056641292,-200.0,0.00015,2]
[337755185,1726056641302,-200.0,0.00015,2]
[337755186,1726056641311,-200.0,0.00015,2]
[337755187,1726056641324,-200.0,0.00015,2]
[337755188,1726056641333,-200.0,0.00015,2]
[337755189,1726056641343,-200.0,0.00015,2]
[337755190,1726056641353,-200.0,0.00015,2]
[337755191,1726056641363,-200.0,0.00015,2]
[337755192,1726056641373,-200.0,0.00015,2]
[337755193,1726056641382,-1475151.58939337,0.00015,2]
[337755194,1726056641397,-353.59275053,0.00015,2]
[337755195,1726056641408,-1529.43690522,0.00015,2]
[337755196,1726056641419,-4409.69574016,0.00015,2]
[337755197,1726056641431,-477.13622937,0.00015,2]
[337755198,1726056641442,-535.52310195,0.00015,2]
[337755199,1726056641457,-557.38108761,0.00015,2]
[337755200,1726056643354,-1610.69941349,0.00012993,2]
[337755210,1726056644688,-1421.51723855,0.00012993,2]
[337755211,1726056644698,-8535.44077849,0.00015,2]
[337755212,1726056644709,-441.344958,0.00015,2]
[337755213,1726056644720,-7145.3267422,0.00015,2]
[337755214,1726056646307,-1358.33273909,0.00015,2]
[337755217,1726056646414,-474.421,0.00015,2]
[337755218,1726056646426,-754.85459043,0.00015,2]
[337755219,1726056646521,-979.58180343,0.00015,2]
[337755220,1726056646533,-912.85999773,0.00015,2]
[337755226,1726056686359,500.0,0.00011164,2]
[337755227,1726056689245,500.0,0.00010068,2]
[337755228,1726056728217,748.83,0.00011115,2]
[337755229,1726056747051,500.0,0.00011164,2]
[337755230,1726056748614,500.0,0.00011164,2]
[337755231,1726056823168,1050.0,0.00011,2]
[337755232,1726057098377,796.0,0.00012003,2]
[337755233,1726057119541,796.0,0.00012003,2]
[337755234,1726057349427,711.38,0.00011268,2]
[337755235,1726057455548,200.03,0.00010959,2]
[337755239,1726057733122,500.0,0.00010068,2]
[337755240,1726057733187,500.0,0.00010068,2]
[337755241,1726057733264,500.0,0.00011164,2]
[337755242,1726057733442,500.0,0.00011164,2]
[337755253,1726057831615,-796.0,0.00012185,2]
[337755254,1726057831627,-500.0,0.00012808,2]
[337755255,1726057831637,-500.0,0.00012808,2]
[337755256,1726057831647,-796.0,0.00012826,2]
[337755257,1726057831657,-154.37,0.00012849,2]
[337755258,1726057831667,-150.0,0.00012879,2]
[337755259,1726057831676,-8219.2228153,0.0001288,2]
[337755260,1726057831689,-2281.45918,0.0001288,2]
[337755261,1726057831711,-48807.86184771,0.0001288,2]
[337755262,1726057831722,-3365.27782299,0.000129,2]
[337755263,1726057831734,-665.80093276,0.000129,2]
[337755264,1726057831744,-156.98427828,0.000129,2]
[337755265,1726057831753,-1693.64661564,0.000129,2]
[337755266,1726057831765,-500.0,0.00012973,2]
[337755267,1726057831775,-500.0,0.00012973,2]
[337755269,1726057831787,-500.0,0.00012973,2]
[337755271,1726057831797,-500.0,0.00012973,2]
[337755273,1726057831812,-250.0,0.0001298,2]
[337755274,1726057831823,-151.19,0.0001299,2]
[337755275,1726057831833,-197.90645454,0.0001299,2]
[337755276,1726057831844,-197.90645454,0.0001299,2]
[337755277,1726057831860,-197.90645454,0.0001299,2]
[337755278,1726057831871,-150.99,0.00012996,2]
[337755279,1726057831882,-500.0,0.00012999,2]
[337755280,1726057831892,-422.89402082,0.00012999,2]
[337755281,1726057831903,-199.793,0.00012999,2]
[337755282,1726057831914,-191.399,0.00012999,2]
[337755283,1726057831924,-152.66223881,0.00012999,2]
[337755284,1726057831934,-63273.15742849,0.00013,2]
[337755285,1726057831947,-13362.63211084,0.00013,2]
[337755286,1726057837402,-1248.30833702,0.00012849,2]
[337755287,1726057837413,-500.49765935,0.00012973,2]
[337755288,1726057837424,-5209.39400363,0.00013,2]
[337755289,1726057837437,-23520.41692139,0.00013,2]
[337755290,1726057837464,-13301.34632884,0.00013,2]
[337755291,1726057837477,-16792.55808578,0.00013,2]
[337755292,1726057837490,-467.14661128,0.00013,2]
[337755293,1726057837503,-15073.07401685,0.00013,2]
[337755294,1726057837516,-8982.22233466,0.00013,2]
[337755295,1726057837578,-112194.83520013,0.00013,2]
[337755296,1726057837636,-590.79915512,0.00013,2]
[337755300,1726057839459,-30261.79095985,0.00013,2]
[337755301,1726057839472,-46034.17645235,0.00013,2]
[337755302,1726057839518,-22512.11144,0.00013,2]
[337755303,1726057839580,-186683.48353057,0.00013,2]
[337755304,1726057839591,-5822650.39427393,0.00013,2]
[337755305,1726057839607,-1049.93004142,0.00013,2]
[337755306,1726057839620,-265.12575888,0.00013,2]
[337755307,1726057839644,-6367.9,0.00013,2]
[337755308,1726057839657,-4617.91216045,0.00013,2]
[337755310,1726057839704,-771.144,0.00013,2]
[337755312,1726057842391,-10229.55309654,0.00013,2]
[337755313,1726057842450,-13275.07477535,0.00013,2]
[337755314,1726057842509,-348.82599169,0.00013,2]
[337755315,1726057842626,-22761.20908656,0.00013,2]
[337755346,1726057845582,-77905.12420012,0.00013,2]
[337755347,1726057845593,-23280.00000007,0.00013,2]
[337755348,1726057845706,-2078.70888371,0.00013,2]
[337755358,1726057861472,750.03,0.0001051,2]
[337755359,1726057919086,500.0,0.00010068,2]
[337755360,1726057990165,160.0,0.00012,2]
[337755361,1726058025141,338.67,0.0001178,2]
[337755362,1726058062572,174.84,0.00010959,2]
[337755363,1726058089595,11389.1501366,6.781e-05,7]
[337755364,1726058093585,1294.15884646,0.00012,2]
[337755365,1726058100445,155.83,0.00011758,2]
[337755366,1726058153713,250.0,0.00011758,2]
[337755367,1726058361089,712.52,9.823e-05,2]
[337755368,1726058412355,4305.4,0.00011688,2]
[337755369,1726058492981,1749.19,0.00011814,2]
[337755370,1726058497508,150.0,0.00011683,2]
[337755371,1726058517478,250.0,0.00011683,2]
[337755372,1726058561046,206.13,0.00011678,2]
[337755373,1726058599322,475.96,0.0001176,2]
[337755374,1726058599554,475.96,0.00011764,2]
[337755375,1726058599796,475.96,0.00011767,2]
[337755376,1726058600051,475.96,0.0001177,2]
[337755377,1726058600249,475.96,0.00011773,2]
[337755378,1726058600454,475.96,0.00011776,2]
[337755379,1726058600657,475.96,0.00011779,2]
[337755380,1726058600890,475.96,0.00011782,2]
[337755381,1726058601138,475.96,0.00011785,2]
[337755382,1726058601349,475.96,0.00011788,2]
[337755383,1726058601578,475.96,0.00011791,2]
[337755384,1726058601802,475.96,0.00011795,2]
[337755385,1726058602014,475.96,0.00011798,2]
[337755386,1726058602235,475.96,0.00011801,2]
[337755387,1726058602467,475.96,0.00011804,2]
[337755388,1726058602676,475.96,0.00011807,2]
[337755389,1726058602882,475.96,0.0001181,2]
[337755390,1726058603127,475.96,0.00011813,2]
[337755391,1726058603375,475.96,0.00011816,2]
[337755392,1726058603957,475.96,0.00011819,2]
[337755393,1726058625833,1050.0,0.00011,2]
[337755394,1726058716602,150.0,0.00011688,2]
[337755395,1726058906716,1000.0,0.00011909,2]
[337755396,1726058919997,676.89,0.00010002,2]
[337755397,1726059015755,153.68,0.00012,2]
[337755415,1726059031651,-245.63,0.0001201,2]
[337755417,1726059031660,-154.37,0.00012019,2]
[337755419,1726059031670,-200.0,0.00012066,2]
[337755421,1726059031681,-50.0,0.00012066,2]
[337755423,1726059031690,-169.33,0.00012104,2]
[337755424,1726059031698,-676.89,0.00012266,2]
[337755425,1726059031707,-150.0,0.00012575,2]
[337755426,1726059031716,-50.51776496,0.000126,2]
[337755427,1726059031727,-434.21516488,0.000126,2]
[337755428,1726059031737,-153.68,0.00012611,2]
[337755429,1726059031745,-153.68,0.00012612,2]
[337755430,1726059031754,-153.68,0.00012612,2]
[337755431,1726059031763,-342.78483512,0.00012621,2]
[337755432,1726059031774,-5713.90516488,0.00012621,2]
[337755433,1726059031783,-222.0,0.00012621,2]
[337755434,1726059031796,-10672.87,0.00012622,2]
[337755435,1726059031805,-499.99,0.00012625,2]
[337755436,1726059031814,-153.68,0.0001267,2]
[337755437,1726059031823,-1500.0,0.0001268,6]
[337755438,1726059031832,-344.85637011,0.00012736,2]
[337755439,1726059031842,-1588.6922,0.000128,2]
[337755440,1726059031851,-500.0,0.00012808,2]
[337755441,1726059031860,-153.68,0.0001289,2]
[337755442,1726059031869,-199.793,0.00012899,2]
[337755443,1726059031878,-150.0,0.00012899,2]
[337755444,1726059031887,-100000.0,0.000129,2]
[337755445,1726059031897,-8963.0781,0.000129,2]
[337755446,1726059031905,-4034.3372,0.000129,2]
[337755447,1726059031914,-1471.267,0.000129,2]
[337755448,1726059031923,-1000.0,0.000129,2]
[337755449,1726059031932,-170.68800696,0.000129,2]
[337755450,1726059031941,-845.01168959,0.000129,2]
[337755451,1726059031952,-6654.98831041,0.000129,2]
[337755452,1726059031961,-5739.67994592,0.000129,2]
[337755453,1726059031970,-27944.49236886,0.000129,2]
[337755454,1726059031981,-661.30024903,0.000129,2]
[337755455,1726059031991,-169.9,0.00012925,2]
[337755456,1726059032000,-161.00270147,0.00012973,2]
[337755457,1726059032009,-200.0,0.00012973,2]
[337755458,1726059032018,-500.0,0.00012973,2]
[337755459,1726059032027,-500.0,0.00012973,2]
[337755460,1726059032036,-334.98095548,0.00012999,2]
[337755461,1726059032055,-500.0,0.00012999,2]
[337755462,1726059032063,-411.47229295,0.00012999,2]
[337755463,1726059032072,-4435.66170447,0.00013,2]
[337755464,1726059032090,-587.0,0.00013,2]
[337755465,1726059032101,-746.56164777,0.00013,2]
[337755466,1726059032112,-548.61637521,0.00013,2]
[337755467,1726059032123,-984.09450233,0.00013,2]
[337755468,1726059032134,-1418.27759829,0.00013,2]
[337755469,1726059032148,-352217.18410411,0.00013,2]
[337755470,1726059032163,-3408.55660197,0.00013,2]
[337755471,1726059032174,-312.75876885,0.00013,2]
[337755472,1726059032185,-535.511,0.00013,2]
[337755473,1726059032196,-2599.99999999,0.00013,2]
[337755479,1726059037587,-638.76806,0.0001274,2]
[337755480,1726059037644,-444.15745544,0.0001274,2]
[337755481,1726059037654,-5020.90214456,0.00013,2]
[337755482,1726059037700,-351.02300115,0.00013,2]
[337755483,1726059037712,-2022.30000001,0.00013,2]
[337755484,1726059037723,-338339.18922652,0.00013,2]
[337755485,1726059037732,-478407.12073632,0.00013,2]
[337755486,1726059037742,-23722.35011438,0.00013,2]
[337755487,1726059037753,-5979.78453988,0.00013,2]
[337755488,1726059037764,-12504.31307594,0.00013,2]
[337755489,1726059037775,-25221.2618869,0.00013,2]
[337755490,1726059037787,-5240.84200001,0.00013,2]
[337755491,1726059037799,-17230.93025997,0.00013,2]
[337755492,1726059037810,-178956.42032758,0.00013,2]
[337755493,1726059037822,-398085.71484587,0.00013,2]
[337755494,1726059037833,-341.64640142,0.00013,2]
[337755495,1726059037844,-13200.0,0.00013,2]
[337755496,1726059037856,-30098.5069003,0.00013,2]
[337755497,1726059037868,-1851.28133172,0.00013,2]
[337755498,1726059037879,-5429.47785504,0.00013,2]
[337755499,1726059037892,-1583.68786984,0.00013,2]
[337755500,1726059037908,-2440.67190885,0.00013,2]
[337755501,1726059037920,-41623.2,0.00013,2]
[337755502,1726059037932,-33740.1538901,0.00013,2]
[337755538,1726059039684,-53283.0315112,0.00013,2]
[337755539,1726059039697,-379.9422459,0.00013,2]
[337755540,1726059039708,-14210.93515988,0.00013,2]
[337755541,1726059039719,-243646.79845588,0.00013,2]
[337755542,1726059039741,-294.65743583,0.00013,2]
[337755543,1726059039752,-3968.06412907,0.00013,2]
[337755544,1726059039763,-11330.79999999,0.00013,2]
[337755545,1726059039774,-976.22792937,0.00013,2]
[337755546,1726059039908,-1832.89551806,0.00013,2]
[337755588,1726059043382,-1401.9999998,0.000129,2]
[337755595,1726059047740,-694.85,0.000129,2]
[337755596,1726059061938,154.94,0.00010959,2]
[337755597,1726059102922,500.0,0.00011164,2]
[337755598,1726059434750,631.31,0.00010431,2]
[337755599,1726059603450,150.87,0.00010959,2]
[337755600,1726059739680,500.0,0.00010068,2]
[337755601,1726059739854,500.0,0.00011164,2]
[337755602,1726059775021,500.0,0.00011164,2]
[337755603,1726059775473,500.0,0.00011164,2]
[337755604,1726059832022,500.0,0.00010068,2]
[337755605,1726059841533,500.0,0.00010068,2]
[337755606,1726059870180,500.0,0.00011164,2]
[337755607,1726059936103,619.64,0.00010168,2]
[337755608,1726060174119,-3569.57607076,0.00012015,2]
[337755609,1726060175293,190.02,0.00010959,2]
[337755619,1726060231770,-150.24,0.00012005,2]
[337755620,1726060231780,-126.72392924,0.00012015,2]
[337755621,1726060231790,-250.0,0.0001205,2]
[337755622,1726060231799,-150.24,0.00012072,2]
[337755623,1726060231809,-150.24,0.00012072,2]
[337755624,1726060231819,-150.24,0.00012072,2]
[337755625,1726060231829,-150.24,0.00012072,2]
[337755626,1726060231838,-150.24,0.00012072,2]
[337755627,1726060231848,-1197.71954676,0.00012082,2]
[337755628,1726060231859,-4000.0,0.00012082,2]
[337755629,1726060231870,-15388.41045324,0.00012082,2]
[337755630,1726060231880,-250.0,0.00012115,2]
[337755631,1726060231889,-186.48,0.00012116,2]
[337755632,1726060231899,-1000.0,0.00012333,2]
[337755633,1726060231908,-619.64,0.00012432,2]
[337755634,1726060231918,-203.49,0.00012446,2]
[337755635,1726060231927,-150.24,0.0001278,2]
[337755636,1726060231936,-150.0,0.00012789,2]
[337755637,1726060231947,-1617.12,0.0001279,2]
[337755638,1726060231956,-299.99,0.0001279,2]
[337755639,1726060231965,-2537.17,0.0001279,2]
[337755640,1726060231974,-499.99,0.00012799,2]
[337755641,1726060231984,-2050.4775,0.000128,2]
[337755642,1726060231993,-4500.1733,0.000128,2]
[337755643,1726060232002,-606.4471,0.000128,2]
[337755644,1726060232012,-2631.7714,0.000128,2]
[337755645,1726060232021,-10986.7987,0.000128,2]
[337755646,1726060232030,-183.99216305,0.000128,2]
[337755647,1726060232039,-352.24523645,0.000128,2]
[337755648,1726060232049,-500.0,0.00012808,2]
[337755649,1726060232058,-500.0,0.00012808,2]
[337755650,1726060232068,-235.35532579,0.00012869,2]
[337755651,1726060232080,-6930.47824333,0.00012869,2]
[337755652,1726060232091,-2314.61,0.00012869,2]
[337755653,1726060232107,-519.55643088,0.00012869,2]
[337755654,1726060232117,-505.63457154,0.00012873,2]
[337755655,1726060232127,-500.0,0.00012873,2]
[337755656,1726060232137,-3087.63311223,0.000129,2]
[337755658,1726060232149,-22817.2,0.000129,2]
[337755660,1726060232161,-1649.09184316,0.000129,2]
[337755662,1726060232172,-365.35210606,0.000129,2]
[337755665,1726060232183,-397.92779334,0.000129,2]
[337755666,1726060232199,-3125.27043744,0.000129,2]
[337755667,1726060232210,-478.59396333,0.000129,2]
[337755668,1726060232222,-26680.86974464,0.000129,2]
[337755669,1726060232231,-100000.0,0.000129,2]
[337755670,1726060232240,-4252.0117,0.000129,2]
[337755671,1726060232249,-8382.81410436,0.000129,2]
[337755672,1726060232265,-719.4241955,0.000129,2]
[337755674,1726060237756,-729.17517403,0.00012869,2]
[337755675,1726060237767,-475.82133345,0.00012869,2]
[337755676,1726060237813,-500.0,0.00012869,2]
[337755677,1726060237826,-3485.37019213,0.00012869,2]
[337755678,1726060237838,-4809.63330039,0.00012869,2]
[337755679,1726060237847,-2272.7172139,0.000129,2]
[337755680,1726060237858,-850.37528624,0.000129,2]
[337755681,1726060237867,-658.0173,0.000129,2]
[337755682,1726060237876,-2234.30958939,0.000129,2]
[337755683,1726060237890,-1503.75465679,0.000129,2]
[337755684,1726060237902,-1600.0,0.000129,2]
[337755685,1726060237913,-1153.0,0.000129,2]
[337755686,1726060237924,-1562.90425382,0.000129,2]
[337755687,1726060237933,-1000.0,0.000129,2]
[337755688,1726060237942,-1636.9819,0.000129,2]
[337755689,1726060237955,-422.33,0.000129,2]
[337755690,1726060237963,-419.51,0.000129,2]
[337755691,1726060237972,-7500.0,0.000129,2]
[337755692,1726060237981,-217.51894451,0.000129,2]
[337755693,1726060237993,-672.05863238,0.000129,2]
[337755694,1726060238002,-162.72061766,0.000129,2]
[337755695,1726060238011,-266.24978965,0.000129,2]
[337755696,1726060238022,-2976.02181235,0.000129,2]
[337755697,1726060238033,-144.00397611,0.000129,2]
[337755698,1726060238042,-808.0,0.00013,2]
[337755699,1726060238051,-323367.3221196,0.00013,2]
[337755700,1726060238062,-274.27572277,0.00013,2]
[337755701,1726060238077,-51749.44334765,0.00013,2]
[337755702,1726060238088,-32234.58733742,0.00013,2]
[337755703,1726060238099,-3400.0,0.00013,2]
[337755704,1726060238109,-2283.51462282,0.00013,2]
[337755705,1726060238120,-1052.64916534,0.00013,2]
[337755706,1726060238131,-1328.28208,0.00013,2]
[337755707,1726060238142,-12608.96321469,0.00013,2]
[337755708,1726060238152,-667.57069182,0.00013,2]
[337755709,1726060238163,-2879.43368562,0.00013,2]
[337755712,1726060238185,-283.29516396,0.00013,2]
[337755714,1726060238198,-424.88308538,0.00013,2]
[337755716,1726060238209,-125237.0388803,0.00013,2]
[337755718,1726060238219,-311.41669212,0.00013,2]
[337755720,1726060238230,-534.02114835,0.00013,2]
[337755723,1726060238244,-2212.02777319,0.00013,2]
[337755796,1726060239789,-920.8377681,0.00012869,2]
[337755797,1726060239903,-4226.62568624,0.00012869,2]
[337755798,1726060239912,-7198.57431376,0.00013,2]
[337755799,1726060239962,-3479.65217388,0.00013,2]
[337755800,1726060240023,-1142.39306054,0.00013,2]
[337755801,1726060240034,-663.34956997,0.00013,2]
[337755802,1726060240083,-491.42877911,0.00013,2]
[337755803,1726060240094,-1332.68018456,0.00013,2]
[337755834,1726060242807,-276.897555,0.000129,2]
[337755839,1726060243819,-74.62148234,0.000129,2]